Cogmind - Beta 16.1 @@@ ROGUE MODE // 2026.02.28 @ 14:44:38 Player: AnotherZach Result: Destroyed by 10-OOU(R) with Subdweller Laser Performance ------------- Evolutions (0) 0 Regions Visited (2) 400 Robots Destroyed (30) 150 Value Destroyed (515) 515 Prototype IDs (13) 260 Alien Tech Used (0) 0 Bonus (-13) -13 TOTAL SCORE: 1312 Bonus ------- Friendly Fire -13 Cogmind --------- Core Integrity 0/250 Matter 12/300 Energy 83/100 System Corruption 0% Temperature Cool (6) Movement Core (850) Ox16 Location -10/Subcaves Parts ------- > --- POWER (1) -------- Subdweller Power Source > --- PROPULSION (2) --- (None) > --- UTILITY (2) ------ High-capacity Storage Unit > --- WEAPON (2) ------- Assault Rifle Subdweller Machine Gun > --- INVENTORY (20) --- Subdweller Power Source Light Treads Light Treads Light Treads Light Treads Light Treads Large Matter Pod (0) Improved Terrain Scanner Seismic Detector Light Armor Plating Scrap Shield Tractor Beam Rainbow Chip Medium Laser Battle Rifle Grenade Launcher Grenade Launcher Datajack Peak State ------------ > --- POWER ------------ Subdweller Power Source > --- PROPULSION ------- Wheel Compact Wheel > --- UTILITY ---------- High-capacity Storage Unit Light Armor Plating > --- WEAPON ----------- Battle Rifle Subdweller Machine Gun > --- INVENTORY -------- Subdweller Power Source Light Treads Light Treads Light Treads Light Treads Light Treads Large Matter Pod Improved Terrain Scanner Seismic Detector Light Armor Plating Scrap Shield Tractor Beam Rainbow Chip Medium Laser Assault Rifle Grenade Launcher Grenade Launcher Subdweller Shrapnel Launcher Datajack [Rating: 13] Favorites ----------- Power Subdweller Power Source Engine Subdweller Power Source Propulsion Wheel Treads Light Treads Wheel Wheel Utility High-capacity Storage Unit Device Improved Terrain Scanner Storage High-capacity Storage Unit Protection Light Armor Plating Weapon Medium Laser Energy Gun Medium Laser Ballistic Gun Assault Rifle Launcher Grenade Launcher Special Weapon Mining Laser Build | -11 -10 -10 ------- Run | Yrd Mat Sub Slots Evolved . | . . . Power . | . . . Propulsion . | . . . Utility . | . . . Weapon . | . . . Parts Attached 26 | 7 9 10 Power 3 | 1 1 1 Engine 3 | 1 1 1 Core . | . . . Reactor . | . . . Propulsion 5 | 2 1 2 Treads 2 | 2 . . Leg . | . . . Wheel 3 | . 1 2 Hover . | . . . Flight . | . . . Utility 6 | 2 3 1 Device 2 | 1 1 . Storage 2 | 1 1 . Processor . | . . . Hackware . | . . . Protection 2 | . 1 1 Artifact . | . . . Weapon 12 | 2 4 6 Energy Gun 4 | 2 1 1 Energy Cannon . | . . . Ballistic Gun 4 | . 1 3 Ballistic Cannon . | . . . Launcher 3 | . 2 1 Special Weapon 1 | . . 1 Impact Weapon . | . . . Slashing Weapon . | . . . Piercing Weapon . | . . . Special Melee Weapon . | . . . Unidentified Prototypes . | . . . Parts Lost 8 | . 1 7 Power 1 | . . 1 Propulsion 3 | . . 3 Utility 2 | . . 2 Weapon 2 | . 1 1 Highest Loss Streak 4 | . 1 4 To Critical Strikes . | . . . Average Backups 15 | 2 14 19 Power . | . . . Propulsion 4 | 1 4 5 Utility 4 | . 3 6 Weapon 5 | . 5 5 Tool/Special . | . . . Unused Backups 13 | . 2 11 Power 1 | . . 1 Propulsion 3 | . . 3 Utility 6 | . 1 5 Weapon 2 | . 1 1 Tool/Special 1 | . . 1 Average Slot Usage (%) 99 | . 99 99 Engine 13 | . 14 13 Treads 8 | . 14 . Wheel 19 | . 13 27 Device 5 | . 10 . Storage 14 | . 14 14 Protection 7 | . 3 13 Energy Gun 20 | . 21 18 Ballistic Gun 3 | . 4 3 Launcher 3 | . 1 5 Peak Build Rating 13 | 9 10 13 Average Rating 9 | 6 9 10 On Entrance 6 | . 9 9 Avg Prop Armor Cover (%) 12 | . 12 10 Naked Turns . | . . . Heaviest Build 57 | 13 52 57 Greatest Support 40 | 40 40 26 Greatest Overweight (x) 5 | . 5 5 Average Overweight (x) 2 | . 3 1 Largest Inventory Capacity 20 | 8 20 20 Average Capacity 19 | 7 19 20 Most Carried 20 | 7 19 20 Average Carried 15 | 2 14 19 Final Capacity 20 | 8 20 20 Final Carried 19 | 7 19 19 Class Distribution -------------------- 100% | Mutant Dominant Class ---------------- Mutant | -10/Materials Mutant | -10/Subcaves Resources | -11 -10 -10 ----------- Run | Yrd Mat Sub Matter Collected 719 | 137 272 310 Remotely 41 | . 41 . Salvage Created 600 | 128 353 119 Parts 48 | 8 34 6 Haulers Intercepted 2 | . 2 . Recyclers Shooed . | . . . Parts Field Recycled . | . . . Retrieved Matter . | . . . Parts Self-Destructed 11 | . . 11 Prevented . | . . . Parts Restored . | . . . Kills | -11 -10 -10 ------- Run | Yrd Mat Sub Combat Hostiles Destroyed 16 | . 11 5 Guns 9 | . 5 4 AOE 7 | . 6 1 Classes Destroyed 11 | 2 7 2 Worker 3 | . 3 . Builder 1 | . 1 . Tunneler 3 | 3 . . Hauler 2 | . 2 . Recycler 2 | 1 1 . Operator 1 | . 1 . Turret 1 | . . 1 Watcher 1 | . 1 . Swarmer 9 | . 9 . Grunt 2 | . 2 . Subdweller 5 | . . 5 Best Kill Streak 7 | 2 7 2 Combat Bots Only 5 | . 5 2 Max Kills in Single Turn 2 | 1 2 1 Gunslinging . | . . . Exploded 2 | . 2 1 Melee . | . . . Uniques/NPCs Destroyed . | . . . Combat | -11 -10 -10 -------- Run | Yrd Mat Sub Hostile Shots Fired 97 | . 36 61 Missed 31 | . 15 16 Hits 66 | . 21 45 Projectile 66 | . 21 45 Damage Taken 1127 | . 279 848 Core 261 | . 58 203 Absorbed by Shields . | . . . Core Remaining (%) 100 | 100 . . Volleys Fired 115 | 11 52 52 Largest 2 | 2 2 2 Hottest 100 | 90 100 100 Shots Fired 204 | 21 102 81 Gun 170 | 21 90 59 Cannon . | . . . Launcher 30 | . 12 18 Special 4 | . . 4 Kinetic 63 | . 37 26 Thermal 93 | 10 44 39 Explosive 28 | . 12 16 Electromagnetic 20 | 11 9 . Robot Hit Streak 10 | 7 6 10 Robot Miss Streak 6 | 2 6 2 Penetration Max . | . . . Secondary Targets . | . . . Shots Hit Robots 100 | 13 44 43 Core Hits 46 | 5 29 12 Critical Kills . | . . . Critical Parts Destroyed . | . . . Critical Strikes 7 | 1 5 1 Burn 5 | 1 3 1 Corrupt 2 | . 2 . Melee Attacks . | . . . Impact . | . . . Slashing . | . . . Piercing . | . . . Sneak Attacks . | . . . Combat Hostiles . | . . . Follow-up Attacks . | . . . Damage Inflicted 2310 | 166 1144 1000 Guns 1111 | 166 514 431 Cannons . | . . . Explosions 1199 | . 630 569 Melee . | . . . Ramming . | . . . Kinetic 739 | . 224 515 Thermal 526 | 75 303 148 Explosive 904 | . 567 337 Electromagnetic 141 | 91 50 . Impact . | . . . Slashing . | . . . Piercing . | . . . Highest Corruption . | . . . Average Corruption . | . . . Corruption Purged . | . . . Corruption Blocked . | . . . Overload Shots . | . . . Overflow Damage 14 | . 6 8 Projectiles . | . . . Explosions 14 | . 6 8 Melee . | . . . Knockbacks . | . . . Impact . | . . . Kinetic . | . . . Secondary . | . . . Self-Inflicted Damage 139 | . 76 63 Shots 8 | . 3 5 Rammed . | . . . Targets Rammed . | . . . Kicked . | . . . Crushed . | . . . Highest Temperature 156 | 150 156 24 Average Temperature 34 | 63 29 9 Received Heat Transfer 243 | . 30 213 Siege Activations . | . . . Martial Activations . | . . . Shielding Activations . | . . . Robots Disrupted . | . . . Combat Hostiles . | . . . Robots Corrupted . | . . . Combat Hostiles . | . . . Parts Fried 2 | 2 . . Impact Corruptions . | . . . Robots Melted . | . . . Combat Hostiles . | . . . Parts Melted 4 | 1 2 1 Heat Transferred 1789 | 296 975 518 Parts Sabotaged . | . . . Parts Stolen . | . . . Parts Stripped . | . . . Power Chain Reactions . | . . . Alert | -11 -10 -10 ------- Run | Yrd Mat Sub Maximum Alert Level 1 | . 1 . Low Security (%) 94 | 100 94 . Level 1 5 | . 5 . Level 2 . | . . . Level 3 . | . . . Level 4 . | . . . Level 5 . | . . . High Security . | . . . Max Security . | . . . Peak Influence 283 | 10 283 . Initial . | . . . Average 49 | 2 54 . Influence Increases 514 | 20 474 20 Destroy 0b10 Robot/C 240 | . 220 20 Destroy 0b10 Robot/NC 65 | 20 45 . Destroy Leader 36 | . 36 . Successful Hack 23 | . 23 . Disable Machine 75 | . 75 . Destroy Structure 75 | . 75 . Influence Decreases 514 | 20 474 20 Time Decay 354 | 20 314 20 Lost Part 10 | . 10 . Purge Threat 150 | . 150 . Squads Dispatched . | . . . Investigation . | . . . Extermination . | . . . Reinforcement . | . . . Assault . | . . . Garrison . | . . . Intercept . | . . . Searches Triggered . | . . . Construction Impeded . | . . . Haulers Reinforced . | . . . Active Scanning Responses . | . . . Cargo Convoy Interrupts . | . . . Stealth | -11 -10 -10 --------- Run | Yrd Mat Sub Distress Signals 1 | . 1 . Communications Jammed . | . . . Distress Signals . | . . . Times Spotted 25 | . 17 8 Peak Tracking Total 8 | . 8 2 Tactical Retreats . | . . . Traps | -11 -10 -10 ------- Run | Yrd Mat Sub Traps Triggered 1 | . 1 . Indirectly . | . . . Trap Hack Attempts . | . . . Triggered . | . . . Disarmed . | . . . Reprogrammed . | . . . Reused . | . . . Traps Extracted . | . . . Installed . | . . . Triggered . | . . . Machines | -11 -10 -10 ---------- Run | Yrd Mat Sub Machines Disabled 8 | . 5 3 Max in Single Turn 3 | . 3 1 Machines Repaired . | . . . Machines Dismantled . | . . . Machines Sabotaged . | . . . Overloaded Fab Kills . | . . . Hacking | -11 -10 -10 --------- Run | Yrd Mat Sub Machines Accessed 9 | . 6 3 Terminals 6 | . 6 . Fabricators . | . . . Repair Stations . | . . . Recycling Units . | . . . Scanalyzers . | . . . Garrison Access . | . . . Total Hacks 29 | . 16 13 Successful 22 | . 9 13 Failed 7 | . 7 . Catastrophic . | . . . Database Lockouts . | . . . Manual 15 | . 15 . Terminals 16 | . 16 . Fabricators . | . . . Repair Stations . | . . . Recycling Units . | . . . Scanalyzers . | . . . Garrison Access . | . . . Terminal Hacks 14 | . 1 13 Record 11 | . . 11 Open Door 1 | . . 1 Unreport Threat 1 | . 1 . Proto ID Catalog 1 | . . 1 Fabricator Hacks . | . . . Repair Station Hacks . | . . . Recycling Unit Hacks . | . . . Scanalyzer . | . . . Garrison Access Hacks . | . . . Unauthorized Hacks 8 | . 8 . Terminals 8 | . 8 . Track 1 | . 1 . Botnet 1 | . 1 . Operators 1 | . 1 . Skim 5 | . 5 . Fabricators . | . . . Repair Stations . | . . . Recycling Units . | . . . Scanalyzers . | . . . Garrison Access . | . . . Data Cores Recovered 1 | . 1 . Used . | . . . Hacking Detections 5 | . 5 . Full Trace Events . | . . . Feedback Events . | . . . Feedback Blocked . | . . . Robot Schematics Acquired . | . . . Robots Built . | . . . Authchips . | . . . Time . | . . . Total Robot Build Rating . | . . . Part Schematics Acquired . | . . . Parts Built . | . . . Authchips . | . . . Time . | . . . Total Part Build Rating . | . . . Part Studies Acquired . | . . . Parts Repaired . | . . . Time . | . . . Parts Recycled . | . . . Recycled Matter . | . . . Retrieved Matter . | . . . Retrieved Components . | . . . Parts Scanalyzed . | . . . Part Schematics Acquired . | . . . Parts Damaged . | . . . Bothacking | -11 -10 -10 ------------ Run | Yrd Mat Sub Used RIF Installer . | . . . Robots Hacked . | . . . Non-combat . | . . . Combat . | . . . Robot Hacks Applied . | . . . Relay Couplers Released . | . . . Fabnet Peak Effective % . | . . . Robots Rewired . | . . . Allies Hacked . | . . . Hacks Repelled . | . . . Allies | -11 -10 -10 -------- Run | Yrd Mat Sub Total Allies . | . . . Largest Group . | . . . Highest-Rated Group . | . . . Highest-Rated Ally . | . . . Total Orders . | . . . Ally Attacks . | . . . Total Damage . | . . . Kills . | . . . Allies Corrupted . | . . . Allies Melted . | . . . Intel | -11 -10 -10 ------- Run | Yrd Mat Sub Active Infowar (turns) 941 | 28 913 . Terrain 941 | 28 913 . Robot Analysis Total . | . . . Derelict Logs Recovered . | . . . Drone Launches . | . . . Drone Recoveries . | . . . Exploration | -11 -10 -10 ------------- Run | Yrd Mat Sub Turns Passed 2255 | 123 1204 928 Spaces Moved 1071 | 48 431 592 Core 2 | 2 . . Treads 75 | 46 29 . Legs . | . . . Wheels 994 | . 402 592 Hover . | . . . Flight . | . . . Fastest Speed 50 | 50 140 105 Average Speed 126 | 155 141 112 Slowest Speed 160 | 160 160 155 Overloaded Moves . | . . . Propulsion Burnouts . | . . . Robots Hopped . | . . . Potential Cave-ins . | . . . Cave-ins Triggered . | . . . Exploration Rate (%) 35 | 4 69 34 Regions Visited 2 Branch Regions 1 Pre-discovered Areas . | . . . Known Exits Taken . | . . . Unknown Exits Taken 2 | 1 1 . Scrap Searched 4 | . . 4 Spaces Dug 5 | . 5 . Terrain Destroyed 226 | . 88 138 Melee . | . . . Projectile . | . . . AOE 226 | . 88 138 Terrain Rammed . | . . . Walls Destroyed . | . . . Machines Disabled . | . . . Actions | -11 -10 -10 --------- Run | Yrd Mat Sub Total 1757 | 72 920 765 Wait 498 | . 401 97 Move 1069 | 47 430 592 Hop . | . . . Pick Up 30 | 7 17 6 Fast Attach 8 | 7 . 1 Attach 5 | . 1 4 Detach . | . . . Swap 23 | . 14 9 Drop 9 | . 5 4 Fire 115 | 11 52 52 Melee . | . . . Ram . | . . . Kick . | . . . Crush . | . . . Escape Stasis . | . . . Rewire . | . . . Trap . | . . . Miscellaneous . | . . . Route ------- -11/Scrapyard -10/Materials (discovered 5 exits: [*Mat x3] / [*Min] / *Sub) -10/Subcaves (discovered 2 exits: Mat / [*Rec]) History --------- Turn | Location | Event 27 | -11/Scrapyard | Discovered new exit (range 15) 124 | -11/Scrapyard | Entered Materials 314 | -10/Materials | Build established: Mutant 441 | -10/Materials | Discovered new exit (range 4) 752 | -10/Materials | Discovered new exit (range 13) 787 | -10/Materials | Discovered new exit (range 11) 928 | -10/Materials | Discovered new exit (range 10) 998 | -10/Materials | Learned location of 1 exit from Recycling 1019 | -10/Materials | Discovered new exit (range 8) 1055 | -10/Materials | Learned 4 Subcaves zone layouts 1144 | -10/Materials | Learned location of 2 exits from Materials 1196 | -10/Materials | Learned location of 2 exits from Materials 1269 | -10/Materials | Learned 4 Subcaves zone layouts 1322 | -10/Materials | Learned location of 1 exit from Recycling 1328 | -10/Materials | Entered Subcaves 1329 | -10/Subcaves | Approached by a straggling Scientist 1329 | -10/Subcaves | Identified exit to Materials 1333 | -10/Subcaves | A swath of the cavern ceiling suddenly collapsed 1401 | -10/Subcaves | Core integrity fell below 50% 1606 | -10/Subcaves | Discovered new exit (range 10) 1670 | -10/Subcaves | Visited Clippyterm 1673 | -10/Subcaves | Learned Factory emergency access door positions 2040 | -10/Subcaves | Visited 4L-MR0's lab 2055 | -10/Subcaves | Found Rainbow Chip 2212 | -10/Subcaves | Ambushed by Subdweller buried in earth 2223 | -10/Subcaves | Core integrity fell below 20% 2256 | -10/Subcaves | Destroyed by 10-OOU(R) with Subdweller Laser Last Messages --------------- 02045_ Testing Chamber breached. 02053_ Dropped Med. Laser. 02055_ Acquired Rainbow Chip. 02065_ 4L-MR0 mumbles to no one in particular: "Damn Subs sneaking around stealing my stuff." SG-D20(c): "I think it's somewhere east of here" SG-D20(c): "I think it's somewhere southeast of here" 02213_ ZJ-7TS(R): "ARGHSUB!" 02233_ ZJ-7TS(R) destroyed. 02236_ Subatomizers dissect the Sub. Optics. 02239_ Acquired 25 matter. SG-D20(c): "I think it's somewhere southeast of here" 02248_ Lgt. Armor Plating destroyed. 02250_ Wheel destroyed. 02254_ Com. Wheel destroyed. 02254_ Sub. Shrapnel Launcher destroyed. 02256_ AQ-OIS(R) destroyed. Map ----- +----------------------------------------------------+ | | | | | | | ?????????????????????????????????????????????????? | | ?????????????????????????????????????????????????? | | ?????????????????????????????????????????????????? | | ?????????????????????????????????????????????????? | | ?????????????????????????????????????????????????? | | ?????????????????????????????????????????????????? | | ?????????????????????????????????????????????????? | | ?????????????????????????????????????????????????? | | ?????????????????????????????????????????????????? | | ?????????????????????????????????????????????????? | | ?????????????????????????????????????????????????? | | ?????????????????????????????????????????????????? | | ?????????????????????????????????????????????????? | | ?????????????????????????????????????????????????? | | ??????????????######????##########???????????????? | | ???????###???# ##??## # # # ####????????????? | | ???????# ##?? #### ; #????????????? | | ???????# ### ## # ;#"???????????? | | ??????## # c """??????????? | | ??????# ####### ] ! R ""??????????? | | ?####?# ####### %& ""???????????? | | ?# ### ### ## & ;#?????????????? | | ?# ## "@ #?????????????? | | ?# ## """ ;; #?????????????? | | ## """ " ;"";; #?????????????? | | # ## "" ""##""""#### "## ##??# # | | #" ######## """"##??""""??" #" #???### | | " ##??????## ##????""???"" ## ##????? | | ##????????### ##??????#???"""#"" #####? | | #???????????#####??????????? "## ## ## | | " ##???????????????????????????##### | | # #????????????????????????????????# | | # ###????????????????????????????????# # | | ## ##?????????????????????????????????######## | | ## #????????????????????????????????????????### | | ## #??????????????????????????????????????????? | | # #??????????????????????????????????????????? | | # #??????????????????????????????????????????? | | # #??????????????????????????????????????????? | | # ##??????????????????????????????????????????? | | # ##???????????????????????????????????????????? | | " " #???????????????????????????????????????????? | | # ##??????????????????????????????????????????? | | # #??????????????????????????????????????????? | | ##??????????????????????????????????????????? | | #??????????????????????????????????????????? | | # #??????????????????????????????????????????? | +----------------------------------------------------+ Best States ------------- Heat Dissipation 25 Energy Generation 15 Energy Capacity 250 Matter Stores 175 Matter Capacity 300 Sight Range 16 Terrain Scan Range 16 Terrain Scan Density 10 Armor Coverage 150 Evasion (%) 40 Recoil Reduction 2 Item Schematics ----------------- None Robot Schematics ------------------ None Fabricated ------------ Nothing Repaired ---------- Nothing Studied --------- None Alien Tech Used ----------------- None Achievements -------------- None Challenges ------------ None Game ------ Seed CannonForceNukerbomber Manual? 0 Play Time 00:16:25 Cumulative 774.5 hours Start 2026.02.28 @ 14:28:59 End 2026.02.28 @ 14:44:38 Sessions 1 Manual Loads 0 Difficulty Rogue Special Mode None Game No. 194 Rogue 56 Adventurer 138 Explorer 0 Win Type - Total 11 Types 7/0/1/2/0/0/0/0/1/0 Lore% 79 Gallery% 75 Achievement% 56 Wizard Run 0 Options --------- Layout 2 ASCII 0 Keyboard 0 Movement Mouse Keybinds 0 Fullscreen 1 Font 24/Smallcaps Map View 50x49 Zoom Use 0% Tactical HUD 1 Map Filters NONE Filters NONE Steam 1 RUN: 243dfe77-7fdb-4ae9-bf25-25cda35dedf6